bitfinex/quotes_ETHUSD_20240717
["timestamp","ask_amount","ask_price","bid_price","bid_amount"]
[1721247750754,2.91786,3427.2,3426.7,1.045]
[1721247750991,0.1876595,3426.9,3426.7,1.045]
[1721247751189,2.91792,3427.1,3426.7,1.045]
[1721247751380,2.91792,3427.1,3426.5,6.46327]
[1721247751381,0.1876595,3426.8,3426.5,6.46327]
[1721247751557,2.91792,3427.1,3426.6,0.93817]
[1721247751757,0.18770286,3426.7,3426.5,6.46327]
[1721247751958,2.91792,3427.1,3426.5,6.46220504]
[1721247752158,0.18770286,3426.6,3426.5,6.46220504]
[1721247752381,2.91792,3427.1,3426.5,6.46220504]
[1721247752576,0.18770286,3426.6,3426.5,6.46220504]
[1721247752796,2.91792,3427.1,3426.5,7.40026854]
[1721247752993,0.18770286,3426.6,3426.5,7.40026854]
[1721247753496,2.91792,3427.1,3426.5,7.40026854]
[1721247753655,0.18770286,3426.6,3426.5,7.40026854]
[1721247753855,2.91792,3427.1,3426.5,7.40026854]
[1721247754055,0.18770286,3427.0,3426.5,7.40026854]
[1721247755664,0.18770286,3427.0,3426.6,1.03186985]
[1721247755867,0.18770286,3427.0,3426.7,1.045]
[1721247758217,0.18770286,3427.0,3426.5,6.46220504]
[1721247759625,0.18770286,3427.0,3426.7,1.045]
[1721247760831,0.18770286,3427.0,3426.5,6.46220504]
[1721247762496,0.18770286,3427.0,3426.5,3.54383504]
[1721247763032,2.91818,3426.8,3426.2,3.96364]
[1721247763415,0.18775806,3426.7,3426.2,3.96364]
[1721247767035,0.18775806,3426.7,3426.4,1.045]
[1721247767425,2.91816,3426.9,3426.4,1.045]
[1721247767602,0.18773243,3426.6,3426.4,1.045]
[1721247767804,2.91816,3426.9,3426.4,1.969417]
[1721247768026,0.18773243,3426.5,3426.4,1.045]
[1721247768500,2.91816,3426.9,3426.4,1.045]
[1721247768701,0.18773243,3426.5,3426.4,1.045]
[1721247768905,5.83632,3426.9,3426.4,1.045]
[1721247769102,0.18773243,3426.5,3426.4,1.045]
[1721247769308,2.91816,3426.9,3426.4,1.677553]
[1721247769533,0.18773243,3426.5,3426.4,1.045]
[1721247769731,2.91816,3426.9,3426.4,1.045]
[1721247769931,2.91817,3426.8,3426.4,1.045]
[1721247770133,3.10590243,3426.8,3426.4,1.045]
[1721247770502,3.10590243,3426.8,3426.2,3.96362]
[1721247770704,3.10590243,3426.8,3426.2,4.888053]
[1721247770899,3.10590243,3426.8,3426.2,3.96362]
[1721247778040,3.10590243,3426.8,3426.4,1.045]
[1721247781524,0.30215567,3426.7,3426.4,1.045]
[1721247781725,0.48987233,3426.7,3426.4,1.045]
[1721247782029,0.18771666,3426.7,3426.4,1.045]
[1721247782412,2.91817,3426.8,3426.4,1.045]
[1721247782722,0.30216782,3426.7,3426.4,1.045]
[1721247782920,0.1877068,3426.7,3426.4,1.045]
[1721247783113,2.91809,3426.9,3426.4,1.045]
[1721247783314,0.1877068,3426.6,3426.4,1.045]
[1721247783514,2.91809,3426.9,3426.4,1.045]
[1721247783723,0.18771469,3426.5,3426.4,1.045]
[1721247783937,2.91809,3426.9,3426.4,1.733218]
[1721247784248,0.18771469,3426.5,3426.4,1.045]
[1721247784418,2.91809,3426.9,3426.4,1.045]
[1721247784619,0.18771469,3426.5,3426.4,3.96351]
[1721247784926,0.18771469,3426.5,3426.4,4.51351]
[1721247785122,4.13654617,3427.1,3426.5,2.91841]
[1721247785334,1.52062266,3427.0,3426.6,1.045]
[1721247785543,0.30200649,3426.9,3426.6,1.045]
[1721247785738,0.30198173,3426.8,3426.6,1.045]
[1721247785937,0.30198173,3426.7,3426.6,1.045]
[1721247786421,0.30198173,3426.9,3426.6,1.045]
[1721247786622,0.30198173,3426.8,3426.6,1.045]
[1721247786933,0.30198173,3426.7,3426.6,1.045]
[1721247787119,0.30198173,3426.9,3426.6,1.045]
[1721247787445,0.30198173,3426.8,3426.6,1.045]
[1721247787643,0.30198173,3426.7,3426.6,1.045]
[1721247787847,0.30198173,3426.9,3426.6,1.045]
[1721247788943,1.21861617,3427.0,3426.6,1.045]
[1721247789156,0.30200346,3426.9,3426.6,1.045]
[1721247789359,0.30200346,3426.9,3426.8,1.045]
[1721247789522,1.21861617,3427.4,3427.0,2.918]
[1721247789725,7.37,3427.5,3426.6,1.0727629]
[1721247789726,0.30190149,3427.3,3427.2,5.18303]
[1721247789922,1.21861617,3427.8,3427.4,2.91761]
[1721247790144,0.30185025,3427.7,3427.5,0.969564]
[1721247790341,1.21861617,3428.0,3427.7,1.045]
[1721247790619,1.53124088,3428.1,3427.7,1.045]
[1721247790620,0.30183509,3427.9,3427.7,1.045]
[1721247790819,0.30183509,3427.8,3427.7,1.045]
[1721247791023,0.30183509,3428.0,3427.7,1.045]
[1721247791446,0.30183509,3428.0,3427.5,1.045]
[1721247792026,0.30182636,3427.9,3427.7,1.045]
[1721247792230,2.9171,3428.1,3427.7,1.045]
[1721247792429,0.30182638,3428.0,3427.7,1.045]
[1721247795336,6.57273617,3428.3,3427.7,1.045]
[1721247795543,0.30182119,3428.2,3427.9,1.045]
[1721247795755,2.91676,3428.5,3428.1,1.045]
[1721247796069,7.37,3428.8,3428.3,1.045]
[1721247796244,1.52864007,3429.0,3428.3,1.045]
[1721247796245,2.4217,3429.0,3428.5,1.045]
[1721247796440,0.30169814,3428.9,3428.7,1.045]
[1721247796624,2.91625,3429.1,3428.7,1.045]
[1721247796827,0.30168407,3429.0,3428.7,1.045]
[1721247797231,4.06212694,3429.1,3428.7,1.045]
[1721247798031,0.17586143,3429.0,3428.5,1.045]
[1721247800245,3.09216143,3429.0,3428.4,2.91673]
[1721247800451,4.13028449,3429.0,3428.4,3.96173]
[1721247801067,2.9164,3428.9,3428.4,1.045]
[1721247801439,2.9164,3428.9,3428.2,3.96195]
[1721247801663,0.17586143,3428.8,3428.2,3.96195]
[1721247803665,0.17586143,3428.8,3428.3,2.91689]
[1721247803864,0.17586143,3428.8,3428.4,1.045]
[1721247804166,0.17604265,3428.7,3428.6,1.045]
[1721247804369,2.9163,3429.0,3428.6,1.045]
[1721247804573,0.17604265,3428.7,3428.6,1.045]
[1721247804869,2.9163,3429.0,3428.4,1.045]
[1721247805171,3.741715,3429.0,3428.4,1.045]
[1721247805347,0.17604265,3428.9,3428.4,1.045]
[1721247810175,3.09244265,3428.9,3428.2,2.91697]
[1721247810379,2.91674,3428.5,3427.9,2.3618]
[1721247810558,2.91674,3428.5,3428.0,1.045]
[1721247810759,0.1760781,3428.4,3428.0,1.045]
[1721247813372,0.1760781,3428.4,3428.2,1.045]
[1721247814273,2.91666,3428.6,3428.2,1.045]
[1721247814762,0.1760722,3428.5,3428.2,1.045]
[1721247816596,5.83318,3428.7,3428.2,1.045]
[1721247816894,0.17607613,3428.4,3428.2,1.045]
[1721247817097,2.91664,3428.6,3428.2,1.045]
[1721247817585,0.17606825,3428.5,3428.2,1.045]
[1721247819994,0.17606825,3428.5,3428.4,3.96181]
[1721247820196,2.3799,3429.2,3428.5,2.91672]
[1721247820365,2.3799,3429.2,3428.7,1.045]
[1721247821606,2.91608,3429.3,3428.7,1.045]
[1721247824381,5.8322,3429.3,3428.6,2.91658]
[1721247824582,7.3902,3429.3,3428.6,2.91658]
[1721247825403,4.47408,3429.3,3428.5,3.96172]
[1721247825607,2.91664,3428.6,3427.9,2.4818]
[1721247825796,2.91664,3428.6,3428.0,1.045]
[1721247826008,2.91673,3428.5,3427.8,3.96232]
[1721247826820,2.91673,3428.5,3427.8,2.91732]
[1721247826984,2.91673,3428.5,3427.8,3.96232]
[1721247827777,2.91683,3428.4,3427.8,1.045]
[1721247827994,3.09299079,3428.4,3427.8,2.46113376]
[1721247828694,2.9169,3428.3,3427.8,2.46113376]
[1721247829296,0.17616079,3428.2,3427.8,2.46113376]
[1721247829838,0.17616079,3428.1,3428.0,1.045]
[1721247830039,2.9169,3428.3,3428.0,1.045]
[1721247830248,0.17616079,3428.1,3428.0,1.045]
[1721247830441,2.9169,3428.3,3428.0,1.045]
[1721247830624,0.17616079,3428.1,3428.0,1.045]
[1721247830837,2.9169,3428.3,3428.0,1.045]
[1721247831036,0.17609189,3428.1,3428.0,1.045]
[1721247831334,2.9168,3428.5,3428.0,3.3684]
[1721247831510,0.17609189,3428.1,3428.0,3.3684]
[1721247831713,2.91681,3428.4,3428.0,3.3684]
[1721247832139,7.37,3429.0,3428.8,2.3234]
[1721247832301,2.91597,3429.4,3428.9,1.045]
[1721247832500,2.91597,3429.4,3429.2,1.045]
[1721247832705,2.91597,3429.4,3429.0,1.045]
[1721247834227,2.91597,3429.4,3428.8,8.1562]
[1721247834944,2.91597,3429.4,3428.8,5.2398]
[1721247835115,2.91597,3429.4,3428.8,8.15621]
[1721247835316,0.30157565,3429.3,3428.8,5.2398]
[1721247836319,0.30157565,3429.3,3428.8,6.055439]
[1721247836916,0.30157579,3429.2,3428.8,6.055439]
[1721247837126,2.91597,3429.4,3428.8,6.055439]
[1721247837340,0.30157585,3429.3,3428.8,6.055439]
[1721247838139,0.30157585,3429.3,3428.9,2.91638]
[1721247838310,0.30157585,3429.3,3428.9,3.8135619]
[1721247838743,1.21861617,3429.5,3428.9,3.8135619]
[1721247838940,0.30156903,3429.4,3428.9,3.8135619]
[1721247840045,4.13449617,3429.5,3428.9,3.8135619]
[1721247840247,1.52018804,3429.4,3428.9,3.8135619]
[1721247840410,1.21861617,3429.4,3428.9,3.8135619]
[1721247840614,0.30157211,3429.3,3429.0,0.90535119]
[1721247841160,0.30156457,3429.2,3429.0,0.90535119]
[1721247841423,4.13459617,3429.4,3429.0,0.90535119]
[1721247841651,0.30156409,3429.3,3429.0,0.90535119]
[1721247842313,0.30156409,3429.3,3428.9,2.91638]
[1721247842522,2.91598,3429.4,3428.9,2.91638]
[1721247842746,0.30155891,3429.3,3428.9,2.91638]
[1721247843234,0.17015786,3429.2,3428.9,2.91638]
[1721247843437,2.91598,3429.4,3428.9,2.91638]
[1721247843632,0.17015786,3429.1,3428.9,3.732013]
[1721247843839,2.91598,3429.4,3428.9,3.732013]
[1721247844033,0.17015786,3429.0,3428.9,3.732013]
[1721247844259,2.91598,3429.4,3428.9,3.732013]
[1721247844438,0.17015786,3429.0,3428.9,3.732013]
[1721247844626,2.91598,3429.4,3428.9,3.732013]
[1721247844830,0.17015786,3429.0,3428.9,3.732013]
[1721247845025,2.91598,3429.4,3428.9,3.732013]
[1721247845225,0.17015786,3429.0,3428.9,3.732013]
[1721247845452,2.91598,3429.4,3428.9,3.732013]
[1721247845651,0.17015786,3429.0,3428.9,3.732013]
[1721247845820,2.91598,3429.4,3428.9,3.732013]
[1721247846020,0.17015786,3429.0,3428.9,2.91638]
[1721247846215,1.21861617,3429.5,3429.0,2.91628]
[1721247846550,1.21861617,3429.7,3429.1,3.46614]
[1721247846717,0.30150267,3429.6,3429.2,2.91613]
[1721247847530,0.30150267,3429.5,3429.2,2.91613]
[1721247847749,4.13425617,3429.8,3429.2,2.91613]
[1721247847919,0.30149554,3429.7,3429.2,2.91613]
[1721247848123,0.30149554,3429.7,3429.2,3.48611875]
[1721247848921,0.30148849,3429.6,3429.2,3.48611875]
[1721247849155,2.91564,3429.8,3429.2,3.48611875]
[1721247849353,0.3014884,3429.7,3429.2,3.48611875]
[1721247852044,2.91564,3429.8,3429.2,3.48611875]
[1721247852232,0.30148693,3429.7,3429.2,3.48611875]
[1721247853234,1.21861617,3429.9,3429.1,0.55]
[1721247853235,2.91559,3429.9,3429.3,2.95723988]
[1721247853439,2.91559,3429.9,3429.3,5.87327988]
[1721247854454,5.83119,3429.9,3429.3,5.87327988]
[1721247855136,2.91559,3429.9,3429.3,5.87327988]
[1721247856253,2.91559,3429.9,3429.5,1.042]
[1721247857137,5.83119,3429.9,3429.5,1.042]
[1721247857337,2.91565,3429.8,3429.3,3.99923988]
[1721247858074,0.17055902,3429.7,3429.3,3.99923988]
[1721247858261,2.91565,3429.8,3429.3,3.99923988]
[1721247858566,0.17055902,3429.6,3429.3,3.99923988]
[1721247858774,2.91565,3429.8,3429.4,0.74653499]
[1721247858942,0.17055902,3429.5,3429.3,3.99923988]
[1721247859148,2.91565,3429.8,3429.3,3.99923988]
[1721247859351,0.17055902,3429.4,3429.3,3.99923988]
[1721247859551,2.91565,3429.8,3429.3,3.99923988]
[1721247859957,0.17055902,3429.7,3429.3,3.99923988]
[1721247861971,2.91551,3430.0,3429.5,1.042]
[1721247862170,2.9153,3430.2,3429.5,1.042]
[1721247862171,2.9154,3430.1,3429.5,1.042]
[1721247862377,2.9154,3430.1,3429.5,1.80816649]
[1721247862669,2.9154,3430.1,3429.5,4.72398649]
[1721247863059,2.91521,3430.3,3429.5,0.76616649]
[1721247863267,3.21671574,3430.2,3429.7,1.042]
[1721247863558,2.91532,3430.2,3429.7,1.042]
[1721247863936,2.91532,3430.2,3429.7,1.80597865]
[1721247864138,3.37237362,3430.4,3429.9,1.042]
[1721247864463,2.91522,3430.3,3429.7,3.67961865]
[1721247864774,2.91522,3430.3,3429.8,1.042]
[1721247865168,2.91522,3430.3,3429.6,1.042]
[1721247865473,2.91554,3429.9,3429.3,6.22004]
[1721247865671,2.91554,3429.9,3429.3,7.188669]
[1721247866054,2.91554,3429.9,3429.5,1.042]
[1721247868988,2.91522,3430.3,3429.6,2.91575]
[1721247869297,2.91528,3430.2,3429.6,2.91575]
[1721247869500,2.91528,3430.2,3429.6,3.9261869]
[1721247870252,2.91552,3430.0,3429.4,2.91596]
[1721247870561,2.91552,3430.0,3429.4,3.95796]
[1721247871363,2.91552,3430.0,3429.6,1.042]
[1721247873165,0.17063445,3429.9,3429.6,1.042]
[1721247875672,3.08616445,3429.9,3429.6,1.042]
[1721247875878,0.17063445,3429.9,3429.6,1.042]
[1721247876274,3.08616445,3429.9,3429.6,1.042]
[1721247877355,0.17063445,3429.9,3429.6,1.7608589]
[1721247877794,2.91532,3430.2,3429.6,1.7608589]
[1721247877795,2.91545,3430.0,3429.6,1.7608589]
[1721247878281,0.17063049,3429.9,3429.6,1.7608589]
[1721247883075,0.17063049,3429.9,3429.4,1.042]
[1721247883283,0.30137561,3429.8,3429.4,1.042]
[1721247883593,0.30137561,3429.8,3429.3,6.146599]
[1721247883817,0.17063049,3429.7,3429.4,1.042]
[1721247884119,2.91558,3429.9,3429.4,1.042]
[1721247884264,0.17063049,3429.6,3429.4,1.042]
[1721247884463,2.91558,3429.9,3429.4,2.1074669]
[1721247884692,0.17063049,3429.5,3429.4,2.1074669]
[1721247884863,2.91558,3429.9,3429.4,2.1074669]
[1721247885066,0.17063049,3429.5,3429.4,2.1074669]
[1721247885378,2.91558,3429.9,3429.4,2.1074669]
[1721247885566,0.17063049,3429.5,3429.4,2.1074669]
[1721247886201,5.83118,3429.9,3429.4,2.1074669]
[1721247886386,0.17063049,3429.5,3429.4,1.042]
[1721247886565,2.91558,3429.9,3429.4,1.042]
[1721247886765,0.17063049,3429.5,3429.4,1.042]
[1721247886977,2.91558,3429.9,3429.4,1.042]
[1721247887176,0.17063049,3429.5,3429.4,2.010617]
[1721247887665,2.91558,3429.9,3429.4,2.010617]
[1721247887868,0.17063049,3429.5,3429.4,2.010617]
[1721247888098,2.91558,3429.9,3429.4,2.010617]
[1721247888398,0.17063049,3429.5,3429.4,2.010617]
[1721247888602,2.91558,3429.9,3429.4,2.010617]
[1721247888803,0.17063049,3429.5,3429.4,2.010617]
[1721247889003,4.13419617,3429.9,3429.4,2.010617]
[1721247889204,0.17063049,3429.5,3429.4,2.010617]
[1721247889414,1.21861617,3429.9,3429.6,2.91576]
[1721247889581,0.17063249,3429.5,3429.4,5.35746]
[1721247889780,1.21861617,3429.9,3429.4,4.0335]
[1721247890012,1.21861617,3429.9,3429.8,1.042]
[1721247890615,1.51991499,3429.9,3429.8,1.042]
[1721247891407,1.51991499,3429.9,3429.8,6.94912]
[1721247891608,1.51991499,3429.9,3429.8,7.935601]
[1721247894490,1.51991499,3429.9,3429.8,10.851221]
[1721247896684,1.21861617,3429.9,3429.8,10.851221]
[1721247896918,1.21861617,3429.9,3429.8,13.766841]
[1721247898604,1.21861617,3429.9,3429.8,16.766841]
[1721247901099,1.21861617,3429.9,3429.8,19.682461]
[1721247902226,5.95552708,3431.4,3429.8,19.682461]
[1721247902227,3.04125708,3431.4,3431.3,5.82868]
[1721247902435,3.04125708,3431.4,3431.3,9.37868]
[1721247902645,3.20070997,3431.4,3431.3,9.37868]
[1721247902925,3.20070997,3431.4,3431.3,3.46434]
[1721247903132,3.20070997,3431.4,3431.3,4.50634]
[1721247903309,3.04125708,3431.4,3431.3,5.24841]
[1721247903505,3.04125708,3431.4,3431.3,8.16275]
[1721247903911,3.04125708,3431.4,3431.3,4.69841]
[1721247904107,3.20071393,3431.4,3431.3,3.65641]
[1721247905628,3.20071393,3431.4,3431.3,0.74207]
[1721247905832,3.20071393,3431.4,3431.2,2.91442]
[1721247906700,0.15945685,3431.4,3431.0,5.82909]
[1721247906898,2.91884,3431.9,3431.2,2.91437]
[1721247907133,0.15965519,3431.3,3431.2,2.91437]
[1721247907380,2.91884,3431.9,3431.2,3.85226]
[1721247907537,0.15965519,3431.3,3431.2,3.85226]
[1721247907832,2.91884,3431.9,3431.2,3.85226]
[1721247908232,0.15965519,3431.8,3431.2,3.85226]
[1721247909024,0.15965519,3431.8,3431.3,2.91433]
[1721247909421,0.15965519,3431.8,3431.3,3.645989]
[1721247911444,0.15965519,3431.8,3431.7,2.914]
[1721247912011,0.005,3431.9,3431.7,2.914]
[1721247912710,0.15967302,3431.8,3431.7,2.914]
[1721247914021,0.15967302,3431.8,3431.7,5.828]
[1721247914223,0.005,3431.9,3431.8,5.82784]
[1721247914419,0.005,3431.9,3431.8,6.37784]
[1721247923248,0.005,3431.9,3431.8,6.376538]
[1721247923764,0.005,3431.9,3431.8,9.290458]
[1721247926259,2.6436869,3432.8,3432.6,2.91317]
[1721247926466,0.1936869,3432.8,3432.6,2.91317]
[1721247926630,0.15980779,3432.7,3432.6,2.91316]
[1721247927058,0.1936869,3432.8,3432.6,2.91316]
[1721247927246,0.15982165,3432.7,3432.6,2.91316]
[1721247927650,0.1936869,3432.8,3432.6,5.82634]
[1721247927846,0.1936869,3432.8,3432.6,2.91316]
[1721247927847,0.15982165,3432.7,3432.6,2.91316]
[1721247928148,0.1936869,3432.8,3432.6,3.59981]
[1721247928347,0.15982165,3432.7,3432.6,3.59981]
[1721247928548,0.1936869,3432.8,3432.4,2.91336]
[1721247928739,0.16051387,3432.7,3432.4,2.91336]
[1721247928932,0.1936869,3432.8,3432.4,2.91336]
[1721247929134,0.16051387,3432.6,3432.5,2.91332]
[1721247929331,0.1936869,3432.8,3432.6,2.91324]
[1721247931531,0.1936869,3432.8,3432.5,2.91328]
[1721247931732,0.1936869,3432.8,3432.5,3.599944]
[1721247931933,0.1936869,3432.8,3432.5,4.639944]
[1721247932159,0.1936869,3432.8,3432.5,1.726664]
[1721247932330,0.1936869,3432.8,3432.7,3.95315]
[1721247933037,0.35426619,3432.8,3432.7,3.95315]
[1721247933237,0.35426619,3432.8,3432.7,6.8663]
[1721247933449,0.35426619,3432.8,3432.7,10.32945]
[1721247933629,0.1936869,3432.8,3432.7,10.32945]
[1721247933827,0.1936869,3432.8,3432.7,11.362395]
[1721247934269,0.1936869,3432.8,3432.7,8.449245]
[1721247934435,0.1936869,3432.8,3432.7,5.536095]
[1721247934830,0.1936869,3432.8,3432.7,2.072945]
[1721247935248,0.3490306,3432.8,3432.7,2.072945]
[1721247935746,0.3490306,3432.8,3432.7,1.032945]
[1721247936147,0.3490306,3432.8,3432.5,3.95331]
[1721247936656,0.3490306,3432.8,3432.7,1.04]
[1721247942074,0.3490306,3432.8,3432.7,3.95315]
[1721247942237,0.3490306,3432.8,3432.7,4.50315]
[1721247945976,0.3490306,3432.8,3432.7,1.59]
[1721247947283,0.3490306,3432.8,3432.4,5.82676]
[1721247947485,0.3490306,3432.8,3432.7,1.04]
[1721247947990,0.3490306,3432.8,3432.7,3.95315]
[1721247948149,0.3490306,3432.8,3432.7,1.04]
[1721247948349,0.1936869,3432.8,3432.7,1.04]
[1721247948584,0.3490306,3432.8,3432.7,1.04]
[1721247948784,5.6952106,3432.8,3432.0,5.91367]
[1721247949086,5.6952106,3432.8,3431.9,5.4846208]
[1721247949087,2.91323,3432.7,3431.9,5.4846208]
[1721247949271,5.6952106,3432.8,3431.9,5.4846208]
[1721247949272,2.91324,3432.6,3431.9,5.4846208]
[1721247949691,3.0686837,3432.5,3432.1,1.04]
[1721247949980,0.1553437,3432.5,3432.1,1.04]
[1721247950160,2.91325,3432.6,3432.1,1.04]
[1721247950360,0.1553437,3432.5,3432.1,1.04]
[1721247952050,0.1553437,3432.5,3432.3,1.04]
[1721247952583,0.1553437,3432.5,3432.1,1.04]
[1721247956788,0.1553437,3432.5,3431.7,2.91397]
[1721247956991,5.22811,3432.4,3431.8,1.59]
[1721247957208,0.1553437,3432.3,3431.8,1.59]
[1721247957563,0.1553437,3432.3,3431.8,4.50392]
[1721247957871,0.1553437,3432.3,3431.8,1.59]
[1721247958073,0.1553437,3432.3,3431.8,4.50391]
[1721247958269,0.1553437,3432.3,3431.8,5.5748397]
[1721247960266,0.1553437,3432.3,3431.8,5.5748397]
[1721247962176,0.1553437,3432.3,3432.0,1.04]
[1721247964302,0.1553437,3432.3,3431.8,4.5348397]
[1721247964303,0.1553437,3432.3,3432.2,1.04]
[1721247964976,0.1553437,3432.3,3432.0,1.04]
[1721247966011,0.1553437,3432.3,3432.0,3.95373]
[1721247966195,0.1553437,3432.3,3432.0,4.83171367]
[1721247968606,0.1553437,3432.3,3432.2,1.04]
[1721247969213,2.91325,3432.6,3432.2,1.04]
[1721247969409,0.1550801,3432.3,3432.2,1.04]
[1721247969579,0.1936869,3432.8,3432.2,1.04]
[1721247969778,0.1550801,3432.7,3432.5,1.04]
[1721247969975,0.1936869,3432.8,3432.5,1.04]
[1721247970180,0.1550921,3432.7,3432.5,1.04]
[1721247970380,0.3376869,3432.8,3432.5,1.04]
[1721247970718,0.1550921,3432.7,3432.3,2.91349]
[1721247970898,0.1550921,3432.7,3432.3,4.83787674]
[1721247971211,0.1550921,3432.6,3432.3,4.83787674]
[1721247971890,0.3376869,3432.8,3432.3,4.83787674]
[1721247972089,0.1550921,3432.5,3432.3,4.83787674]
[1721247972314,0.3376869,3432.8,3432.3,4.83787674]
[1721247972913,0.1550921,3432.7,3432.3,4.83787674]
[1721247973416,0.1550921,3432.6,3432.3,4.83787674]
[1721247973787,0.3376869,3432.8,3432.3,4.83787674]
[1721247973992,0.1550921,3432.7,3432.3,4.83787674]
[1721247974192,0.3376869,3432.8,3432.3,7.75130674]
[1721247974414,0.1550921,3432.7,3432.3,4.83781674]
[1721247974618,0.1550921,3432.7,3432.6,3.95324]
[1721247974779,0.3376869,3432.8,3432.6,1.04]
[1721247974986,0.3376869,3432.8,3432.7,2.91315]
[1721247976712,0.3376869,3432.8,3432.7,5.8263]
[1721247976890,0.3376869,3432.8,3432.7,6.3763]
[1721247977090,0.3376869,3432.8,3432.7,7.34826]
[1721247978014,0.49292278,3432.8,3432.7,7.34826]
[1721247978188,0.3376869,3432.8,3432.7,7.34826]
[1721247979790,0.3376869,3432.8,3432.7,8.38826]
[1721247980186,0.3376869,3432.8,3432.7,1.59]
[1721247980392,0.49292278,3432.8,3432.5,2.91327]
[1721247980592,0.49292278,3432.8,3432.6,0.55]
[1721247981891,0.49292278,3432.8,3432.6,3.46318]
[1721247982121,0.49292278,3432.8,3432.6,4.50318]
[1721247982449,0.49292278,3432.8,3432.7,0.741644]
[1721247983435,0.49292278,3432.8,3432.6,4.50318]
[1721247986517,0.49292278,3432.8,3432.6,0.55]
[1721247986715,0.49292278,3432.8,3432.5,0.55]
[1721247987001,0.49292278,3432.8,3432.5,3.46331]
[1721247987890,0.49292278,3432.8,3432.4,1.04]
[1721247989996,2.2945,3432.7,3431.7,0.89922053]
[1721247990197,2.2945,3432.7,3430.7,0.60782353]
[1721247990198,2.2945,3431.7,3430.7,0.60782353]
[1721247990397,2.2945,3431.7,3430.6,2.43983619]
[1721247990398,2.91418,3431.5,3430.6,3.95491]
[1721247990598,1.19520791,3431.4,3430.4,2.91507]
[1721247990903,2.91452,3431.1,3430.3,2.91513]
[1721247991120,2.91461,3431.0,3430.3,2.91513]
[1721247991429,3.06980792,3431.0,3430.4,2.91511]
[1721247992438,3.06980792,3431.0,3430.0,2.4306]
[1721247992439,2.91478,3430.8,3430.0,2.91544]
[1721247992628,2.91478,3430.8,3430.1,0.583105]
[1721247992928,0.15498619,3430.7,3430.1,3.498465]
[1721247993311,2.91478,3430.8,3430.1,3.498465]
[1721247993615,3.06966829,3430.7,3430.1,3.498465]
[1721247993821,3.06966829,3430.7,3430.2,0.55]
[1721247995257,2.91495,3430.6,3430.2,0.55]
[1721247995436,2.91495,3430.6,3430.0,0.55]
[1721247995948,0.15481829,3430.5,3430.0,0.55]
[1721247996325,2.91511,3430.4,3430.0,0.55]
[1721247996647,0.15440065,3430.3,3429.8,0.55]
[1721247996831,3.06961065,3430.3,3429.8,0.55]
[1721247997356,2.9155,3430.0,3429.7,2.9152]
[1721247997640,0.15432269,3429.9,3429.7,2.9152]
[1721247998918,3.06985269,3429.9,3429.7,2.9152]
[1721248002946,2.91562,3429.8,3429.7,2.9152]
[1721248003347,3.06979269,3429.8,3429.7,2.9152]
[1721248004740,6.82553496,3429.8,3429.7,2.9152]
[1721248011422,9.32453496,3429.8,3429.7,2.9152]
[1721248012227,12.24015496,3429.8,3429.7,2.9152]
[1721248012428,14.56015496,3429.8,3429.7,2.9152]
[1721248017246,12.06115496,3429.8,3429.7,2.9152]
[1721248017467,3.06979269,3429.8,3429.7,2.9152]
[1721248017650,5.98541269,3429.8,3429.7,2.9152]
[1721248018056,0.15417269,3429.8,3429.7,2.9152]
[1721248018557,3.06979269,3429.8,3429.7,2.9152]
[1721248019129,5.98541269,3429.8,3429.7,2.9152]
[1721248019438,6.97971196,3429.8,3429.7,2.9152]
[1721248023933,9.89533196,3429.8,3429.7,2.9152]
[1721248024863,12.33563196,3429.8,3429.7,2.9152]
[1721248035674,12.75579751,3429.8,3429.7,2.9152]
[1721248037172,12.75578577,3429.8,3429.7,2.9152]
[1721248037347,9.84016577,3429.8,3429.7,2.9152]
[1721248037544,6.86280544,3429.8,3429.7,2.9152]
[1721248037746,3.06979269,3429.8,3429.7,2.9152]
[1721248040618,0.15417269,3429.8,3429.7,2.9152]
[1721248041110,0.15381077,3429.8,3429.7,2.9152]
[1721248041636,0.4200375,3429.8,3429.7,2.9152]
[1721248041914,0.57384827,3429.8,3429.7,2.9152]
[1721248044529,0.15381077,3429.8,3429.7,2.9152]
[1721248045026,0.42003471,3429.8,3429.7,2.9152]
[1721248045312,0.57387349,3429.8,3429.7,2.9152]
[1721248047818,0.57388019,3429.8,3429.7,2.9152]
[1721248048218,0.57388011,3429.8,3429.7,2.9152]
[1721248048724,0.57388023,3429.8,3429.7,2.9152]
[1721248049104,3.48950023,3429.8,3429.7,2.9152]
[1721248051122,3.48950109,3429.8,3429.7,2.9152]
[1721248051595,6.40512109,3429.8,3429.7,2.9152]
[1721248053228,9.69055695,3429.8,3429.7,2.9152]
[1721248053403,14.74190681,3429.8,3429.7,2.9152]
[1721248053732,16.57819186,3429.8,3429.7,2.9152]
[1721248054226,16.57882718,3429.8,3429.7,2.9152]
[1721248056697,12.35452174,3429.8,3429.7,2.9152]
[1721248057398,12.35431945,3429.8,3429.7,2.9152]
[1721248057711,10.84043464,3429.8,3429.7,2.9152]
[1721248057893,3.48958506,3429.8,3429.7,2.9152]
[1721248058729,6.40520506,3429.8,3429.7,2.9152]
[1721248061111,14.18418962,3429.8,3429.7,2.9152]
[1721248063844,14.18428362,3429.8,3429.7,2.9152]
[1721248067142,14.18430007,3429.8,3429.7,2.9152]
[1721248067430,12.67035425,3429.8,3429.7,2.9152]
[1721248067621,14.18430013,3429.8,3429.7,2.9152]
[1721248068134,14.18430082,3429.8,3429.7,2.9152]
[1721248068924,15.22630082,3429.8,3429.7,2.9152]
[1721248069924,17.06248487,3429.8,3429.7,2.9152]
[1721248070444,15.22646992,3429.8,3429.7,2.9152]
[1721248072343,14.18446992,3429.8,3429.7,2.9152]
[1721248072651,15.22646992,3429.8,3429.7,2.9152]
[1721248073432,15.22648714,3429.8,3429.7,2.9152]